fUST/lending_fUST_20250421
["ID","MTS","AMOUNT","RATE_DAILY","PERIOD"]
[358549284,1745244657786,-250.0,0.00027945,5]
[358549285,1745244657795,-250.0,0.00027945,5]
[358549286,1745244657805,-250.0,0.00027945,5]
[358549287,1745244657814,-250.0,0.00027952,5]
[358549288,1745244657825,-500.0,0.00028082,2]
[358549289,1745244657834,-500.0,0.00028219,2]
[358549290,1745244657844,-151.0,0.00028219,7]
[358549291,1745244657853,-766.91836523,0.00028219,2]
[358549292,1745244657863,-1897.40935752,0.00028219,2]
[358549293,1745244657872,-1485.64360455,0.00028219,2]
[358549294,1745244657882,-797.82,0.00028219,2]
[358549295,1745244657892,-350.0,0.00028252,5]
[358549296,1745244657901,-500.0,0.00028356,2]
[358549297,1745244657911,-952.54953562,0.00028397,2]
[358549298,1745244657921,-500.0,0.00028493,2]
[358549299,1745244657931,-350.0,0.00028493,5]
[358549300,1745244657940,-350.0,0.00028493,5]
[358549301,1745244657949,-350.0,0.00028493,5]
[358549302,1745244657959,-1500.0,0.00028548,5]
[358549303,1745244657969,-500.0,0.0002863,2]
[358549304,1745244657979,-500.0,0.00028767,2]
[358549305,1745244657989,-500.0,0.0002888,5]
[358549306,1745244657999,-592.435436,0.00028904,2]
[358549307,1745244658008,-1085.48107589,0.00029,7]
[358549308,1745244658017,-1085.48107589,0.00029,7]
[358549309,1745244658027,-6558.53991766,0.00029,7]
[358549310,1745244658036,-6558.53991766,0.00029,7]
[358549311,1745244658046,-160.0,0.00029,7]
[358549312,1745244658055,-160.0,0.00029,7]
[358549313,1745244658065,-420.65680271,0.00029,7]
[358549314,1745244658074,-450.0,0.00029041,5]
[358549315,1745244658084,-370.70491285,0.00029041,5]
[358549316,1745244658093,-463.40445878,0.00029041,5]
[358549317,1745244658102,-1132.0,0.00029191,2]
[358549318,1745244658111,-2915.64550625,0.000294,7]
[358549319,1745244658121,-550.0,0.00029589,5]
[358549320,1745244658130,-1152.0,0.00029751,2]
[358549321,1745244658225,-200.0,0.000299,120]
[358549322,1745244658235,-200.0,0.000299,120]
[358549323,1745244658244,-200.0,0.000299,120]
[358549324,1745244658254,-151.0,0.0003,7]
[358549325,1745244658264,-200.0,0.0003,2]
[358549326,1745244658274,-200.0,0.0003,2]
[358549327,1745244658283,-153.0,0.0003,2]
[358549328,1745244658292,-183.2715,0.0003,2]
[358549329,1745244658301,-230.0,0.0003,2]
[358549330,1745244658311,-2000.0,0.0003,4]
[358549331,1745244658320,-258.53873109,0.00030137,5]
[358549332,1745244658332,-1800.0,0.00030192,5]
[358549333,1745244658342,-200.0,0.000309,14]
[358549334,1745244658352,-200.0,0.000309,14]
[358549335,1745244658361,-450.0,0.00030992,5]
[358549336,1745244658371,-200.0,0.00031,6]
[358549337,1745244658381,-200.0,0.00031,6]
[358549338,1745244658391,-1076.478256,0.0003105,2]
[358549339,1745244658400,-283.629,0.00031236,7]
[358549340,1745244658411,-200.0,0.000316,120]
[358549341,1745244658421,-200.0,0.000316,120]
[358549342,1745244658431,-200.0,0.000316,120]
[358549343,1745244658440,-153.0,0.00031644,2]
[358549344,1745244658449,-952.54953562,0.00031742,2]
[358549345,1745244658459,-2100.0,0.00031836,5]
[358549346,1745244658469,-271.856894,0.00031963,120]
[358549347,1745244658480,-200.0,0.00032,10]
[358549348,1745244658490,-200.0,0.00032,10]
[358549349,1745244658499,-270.262,0.00032305,2]
[358549350,1745244658510,-708.0,0.00032305,2]
[358549351,1745244658519,-547.498,0.00032305,2]
[358549352,1745244658529,-2246.0,0.00032305,2]
[358549353,1745244658539,-403.0,0.00032305,2]
[358549354,1745244658549,-1613.0,0.00032521,3]
[358549355,1745244658559,-300.0,0.00032876,30]
[358549356,1745244658569,-300.0,0.00032876,30]
[358549357,1745244658578,-300.0,0.00032876,30]
[358549358,1745244658588,-300.0,0.00032876,30]
[358549359,1745244658598,-300.0,0.00032876,30]
[358549360,1745244658607,-300.0,0.00032876,30]
[358549361,1745244658617,-300.0,0.00032876,30]
[358549362,1745244658626,-300.0,0.00032876,30]
[358549363,1745244658637,-300.0,0.00032876,30]
[358549364,1745244658646,-300.0,0.00032876,30]
[358549365,1745244658655,-300.0,0.00032876,30]
[358549366,1745244658665,-300.0,0.00032876,30]
[358549367,1745244658674,-300.0,0.00032876,30]
[358549368,1745244658684,-300.0,0.00032876,30]
[358549369,1745244658694,-300.0,0.00032876,30]
[358549370,1745244658703,-300.0,0.00032876,30]
[358549371,1745244658713,-300.0,0.00032876,30]
[358549372,1745244658723,-300.0,0.00032876,30]
[358549373,1745244658733,-300.0,0.00032876,30]
[358549374,1745244658742,-340.57059734,0.00032876,30]
[358549375,1745244658751,-188.88512555,0.00032877,2]
[358549376,1745244658760,-500.0,0.00032877,4]
[358549377,1745244658770,-151.0,0.00032877,14]
[358549378,1745244658780,-2896.98,0.000329,30]
[358549379,1745244658789,-10063.49,0.000329,30]
[358549380,1745244658799,-160.0,0.000329,30]
[358549381,1745244658809,-312.84021666,0.000329,30]
[358549382,1745244658819,-325.67446916,0.000329,2]
[358549383,1745244658828,-170.0,0.00032914,2]
[358549384,1745244658838,-170.0,0.00032914,2]
[358549385,1745244658848,-170.0,0.00032914,2]
[358549386,1745244658857,-170.0,0.00032914,2]
[358549387,1745244658867,-170.0,0.00032914,2]
[358549388,1745244658877,-170.0,0.00032914,2]
[358549389,1745244658886,-170.0,0.00032914,2]
[358549390,1745244658896,-170.0,0.00032914,2]
[358549391,1745244658905,-170.0,0.00032914,2]
[358549392,1745244658915,-170.0,0.00032914,2]
[358549393,1745244658924,-170.0,0.00032914,2]
[358549394,1745244658934,-170.0,0.00032914,2]
[358549395,1745244658943,-170.0,0.00032914,2]
[358549396,1745244658953,-170.0,0.00032914,2]
[358549397,1745244658962,-153.0,0.00032926,2]
[358549398,1745244658973,-153.0,0.00032926,2]
[358549399,1745244658982,-153.0,0.00032926,2]
[358549400,1745244658992,-153.0,0.00032926,2]
[358549401,1745244659001,-153.0,0.00032926,2]
[358549402,1745244659010,-153.0,0.00032926,2]
[358549403,1745244659020,-170.0,0.00032929,2]
[358549404,1745244659029,-170.0,0.00032929,2]
[358549405,1745244659039,-170.0,0.00032929,2]
[358549406,1745244659048,-170.0,0.00032929,2]
[358549407,1745244659057,-170.0,0.00032929,2]
[358549408,1745244659067,-170.0,0.00032929,2]
[358549409,1745244659075,-170.0,0.00032929,2]
[358549410,1745244659084,-170.0,0.00032929,2]
[358549411,1745244659094,-170.0,0.00032929,2]
[358549412,1745244659103,-170.0,0.00032929,2]
[358549413,1745244659112,-170.0,0.00032929,2]
[358549414,1745244659122,-170.0,0.00032929,2]
[358549415,1745244659131,-170.0,0.00032929,2]
[358549416,1745244659140,-200.0,0.00033,14]
[358549417,1745244659150,-200.0,0.00033,14]
[358549418,1745244659159,-230.0,0.00033,2]
[358549419,1745244659169,-230.0,0.00033,2]
[358549420,1745244659178,-161.815,0.0003321,35]
[358549421,1745244659188,-200.0,0.000333,120]
[358549422,1745244659198,-200.0,0.000333,120]
[358549423,1745244659208,-189.82551889,0.00033432,5]
[358549424,1745244659218,-2400.0,0.00033479,5]
[358549425,1745244659228,-550.0,0.00033732,5]
[358549426,1745244659238,-200.0,0.00034,18]
[358549427,1745244659248,-200.0,0.00034,18]
[358549428,1745244659257,-1000.0,0.00034247,4]
[358549429,1745244659267,-1800.81,0.00034251,2]
[358549430,1745244659276,-1800.81,0.00034251,2]
[358549431,1745244659286,-1800.81,0.00034251,2]
[358549432,1745244659295,-1800.81,0.00034251,2]
[358549433,1745244659305,-1800.81,0.00034251,2]
[358549434,1745244659315,-1800.81,0.00034251,2]
[358549435,1745244659325,-1800.81,0.00034251,2]
[358549436,1745244659337,-1800.81,0.00034251,2]
[358549437,1745244659347,-1800.81,0.00034251,2]
[358549438,1745244659356,-1800.81,0.00034251,2]
[358549439,1745244659366,-1076.478256,0.00034703,2]
[358549440,1745244659376,-842.61541962,0.00034849,120]
[358549441,1745244659386,-275.45,0.00035,22]
[358549442,1745244659395,-200.0,0.00035,22]
[358549443,1745244659406,-301.63281,0.00035,120]
[358549444,1745244659415,-200.0,0.00035,120]
[358549445,1745244659425,-202.992,0.00035,5]
[358549446,1745244659435,-952.54953562,0.00035086,2]
[358549447,1745244659445,-2186.26552735,0.00035123,5]
[358549448,1745244659454,-347.28,0.00035305,2]
[358549449,1745244659464,-2195.049,0.00035305,2]
[358549450,1745244659475,-10063.49,0.000354,30]
[358549451,1745244659486,-2258.0,0.0003555,3]
[358549452,1745244659496,-500.0,0.00035616,7]
[358549453,1745244659505,-179.51409327,0.00035616,7]
[358549454,1745244659515,-1500.0,0.00035616,4]
[358549455,1745244659525,-183.2715,0.00035875,5]
[358549456,1745244659535,-202.992,0.00035875,5]
[358549457,1745244659544,-200.0,0.00036,26]
[358549458,1745244659554,-230.0,0.00036,2]
[358549459,1745244659564,-230.0,0.00036,2]
[358549460,1745244659574,-230.0,0.00036,2]
[358549461,1745244659584,-655.65765304,0.000362,120]
[358549462,1745244659593,-655.65765303,0.000362,120]
[358549463,1745244659603,-655.65765303,0.000362,120]
[358549464,1745244659612,-258.0,0.00036201,7]
[358549465,1745244659622,-2896.98,0.000364,30]
[358549466,1745244659632,-650.0,0.00036471,5]
[358549467,1745244659642,-271.856894,0.0003653,120]
[358549468,1745244659652,-172.85226834,0.00036589,10]
[358549469,1745244659663,-200.0,0.000367,120]
[358549470,1745244659672,-157.08990772,0.00036822,2]
[358549471,1745244659682,-2000.0,0.00036986,4]
[358549472,1745244659693,-151.0,0.0003699,14]
[358549473,1745244659702,-151.0,0.0003699,14]
[358549474,1745244659712,-151.0,0.0003699,14]
[358549475,1745244659723,-268.749398,0.00037,14]
[358549476,1745244659733,-200.0,0.00037,30]
[358549477,1745244659742,-312.84021666,0.00037,30]
[358549478,1745244659752,-10063.49,0.000374,30]
[358549479,1745244659762,-1500.0,0.00037471,5]
[358549480,1745244659772,-1500.0,0.00037471,5]
[358549481,1745244659856,-1500.0,0.00037471,5]
[358549482,1745244659866,-1006.63523273,0.00037471,5]
[358549483,1745244659876,-224.03593764,0.00037471,5]
[358549484,1745244659886,-1500.0,0.00037471,5]
[358549485,1745244659896,-1500.0,0.00037671,5]
[358549486,1745244659905,-1500.0,0.00037671,5]
[358549487,1745244659915,-1500.0,0.00037671,5]
[358549488,1745244659925,-230.05671297,0.00037671,5]
[358549489,1745244659934,-1618.85061429,0.00037671,5]
[358549490,1745244659944,-1500.0,0.00037671,5]
[358549491,1745244659953,-1280.42090887,0.00037671,5]
[358549492,1745244659962,-517.14731367,0.00037671,5]
[358549493,1745244659973,-1500.0,0.00037671,5]
[358549494,1745244659983,-1500.0,0.00037671,5]
[358549495,1745244659993,-1500.0,0.00037671,5]
[358549496,1745244660002,-2009.8061465,0.00037904,4]
[358549497,1745244660012,-200.0,0.00038,33]
[358549498,1745244660022,-200.0,0.00038,14]
[358549499,1745244660031,-200.0,0.00038,14]
[358549500,1745244660041,-200.0,0.00038,14]
[358549501,1745244660051,-200.0,0.00038,14]
[358549502,1745244660062,-160.0,0.00038,3]
[358549503,1745244660072,-160.0,0.00038,3]
[358549504,1745244660082,-500.0,0.00038355,2]
[358549505,1745244660092,-500.0,0.00038355,2]
[358549506,1745244660102,-155.34341238,0.00038356,2]
[358549507,1745244660111,-507.11373466,0.00038356,90]
[358549508,1745244660121,-1076.478256,0.00038356,2]
[358549509,1745244660130,-200.0,0.00038356,5]
[358549510,1745244660140,-2500.0,0.00038356,4]
[358549511,1745244660150,-25713.9229918,0.00038356,5]
[358549512,1745244660159,-200.0,0.000384,120]
[358549513,1745244660169,-952.54953562,0.00038431,2]
[358549514,1745244660178,-578.14401748,0.00038802,7]
[358549515,1745244660188,-221.85598252,0.00038813,7]
[358549516,1745244660198,-800.0,0.00038815,7]
[358549517,1745244660208,-3162.0,0.00038861,5]
[358549518,1745244660220,-19352.477031,0.000389,7]
[358549519,1745244660230,-1000.0,0.00039,10]
[358549520,1745244660240,-200.0,0.00039,37]
[358549521,1745244660250,-230.0,0.00039,2]
[358549522,1745244660259,-230.0,0.00039,2]
[358549523,1745244660269,-230.0,0.00039,2]
[358549524,1745244660279,-655.65765303,0.00039043,120]
[358549525,1745244660288,-750.0,0.00039211,5]
[358549526,1745244660298,-156.905233,0.0003926,30]
[358549527,1745244660307,-800.0,0.00039295,7]
[358549528,1745244660318,-311.2198851,0.00039315,30]
[358549529,1745244660328,-157.0640115,0.00039315,30]
[358549530,1745244660341,-800.0,0.00039389,7]
[358549531,1745244660350,-800.0,0.00039448,7]
[358549532,1745244660360,-800.0,0.00039539,7]
[358549533,1745244660370,-800.0,0.00039571,7]
[358549534,1745244660381,-2896.98,0.000396,30]
[358549535,1745244660391,-10063.49,0.000396,30]
[358549536,1745244660400,-390.699776,0.000396,14]
[358549537,1745244660410,-390.699776,0.000396,14]
[358549538,1745244660421,-800.0,0.00039663,7]
[358549539,1745244660432,-221.85598252,0.00039704,7]
[358549540,1745244660442,-151.0,0.00039736,14]
[358549541,1745244660452,-151.0,0.00039736,14]
[358549542,1745244660462,-151.0,0.00039736,14]
[358549543,1745244660473,-151.0,0.00039736,14]
[358549544,1745244660483,-151.0,0.00039737,14]
[358549545,1745244660493,-151.0,0.00039737,14]
[358549546,1745244660503,-171.589804,0.00039737,14]
[358549547,1745244660512,-171.589804,0.00039737,14]
[358549548,1745244660522,-151.0,0.00039787,7]
[358549549,1745244660531,-151.0,0.00039787,7]
[358549550,1745244660541,-151.0,0.00039787,7]
[358549551,1745244660551,-151.0,0.00039787,7]
[358549552,1745244660561,-151.0,0.00039787,7]
[358549553,1745244660571,-207.4,0.00039787,7]
[358549554,1745244660580,-151.0,0.00039787,7]
[358549555,1745244660590,-215.0738,0.00039787,7]
[358549556,1745244660599,-151.0,0.00039787,7]
[358549557,1745244660609,-151.0,0.00039787,7]
[358549558,1745244660619,-223.0315306,0.00039787,7]
[358549559,1745244660629,-151.0,0.00039787,7]
[358549560,1745244660639,-231.28369723,0.00039787,7]
[358549561,1745244660648,-151.0,0.00039787,7]
[358549562,1745244660658,-343.72727494,0.00039787,7]
[358549563,1745244660667,-151.0,0.00039787,7]
[358549564,1745244660677,-151.0,0.00039787,7]
[358549565,1745244660686,-151.0,0.00039787,7]
[358549566,1745244660696,-151.0,0.00039787,7]
[358549567,1745244660705,-151.0,0.00039787,7]
[358549568,1745244660715,-151.0,0.00039787,7]
[358549569,1745244660727,-268.45099498,0.00039787,7]
[358549570,1745244660737,-151.0,0.00039787,14]
[358549571,1745244660747,-800.0,0.00039794,7]
[358549572,1745244660756,-500.0,0.00039799,2]
[358549573,1745244660766,-500.0,0.00039799,2]
[358549574,1745244660775,-96841.40929364,0.000398,2]
[358549575,1745244660902,-403.0,0.00035305,2]
[358549576,1745244660912,-21659.49921179,0.000398,2]
[358549577,1745244660923,-945.60777732,0.000398,2]
[358549578,1745244661188,-500.0,0.00021917,2]
[358549579,1745244661198,-500.0,0.00021917,2]
[358549580,1745244661208,-500.0,0.00021917,2]
[358549581,1745244661218,-500.0,0.00021917,2]
[358549582,1745244661228,-500.0,0.00022191,2]
[358549583,1745244661312,-500.0,0.00022191,2]
[358549584,1745244661322,-500.0,0.00022465,2]
[358549585,1745244661334,-500.0,0.00022465,2]
[358549586,1745244661345,-193.35,0.00022739,2]
[358549587,1745244661355,-500.0,0.00022739,2]
[358549588,1745244661364,-500.0,0.00023013,2]
[358549589,1745244661375,-500.0,0.00023287,2]
[358549590,1745244661385,-500.0,0.00023561,2]
[358549591,1745244661394,-500.0,0.00023835,2]
[358549592,1745244661404,-500.0,0.00024109,2]
[358549593,1745244661418,-500.0,0.00024383,2]
[358549594,1745244661428,-500.0,0.00024657,2]
[358549595,1745244661438,-500.0,0.00024931,2]
[358549596,1745244661447,-500.0,0.00025205,2]
[358549597,1745244661457,-500.0,0.00025479,2]
[358549598,1745244661467,-500.0,0.00025753,2]
[358549599,1745244661479,-500.0,0.00026027,2]
[358549600,1745244661489,-500.0,0.00026301,2]
[358549601,1745244661500,-500.0,0.00026575,2]
[358549602,1745244661510,-500.0,0.00026849,2]
[358549603,1745244661520,-166.0,0.00027,2]
[358549604,1745244661530,-500.0,0.00027123,2]
[358549605,1745244661540,-500.0,0.00027397,2]
[358549606,1745244661550,-500.0,0.00027397,14]
[358549607,1745244661559,-500.0,0.00027397,14]
[358549608,1745244661569,-500.0,0.00027397,14]
[358549609,1745244661579,-500.0,0.00027397,14]
[358549610,1745244661589,-500.0,0.00027397,14]
[358549611,1745244661599,-500.0,0.00027671,2]
[358549612,1745244661609,-245.32242844,0.00027945,2]
[358549613,1745244661620,-166.0,0.00028767,2]
[358549614,1745244661630,-166.0,0.00036247,2]
[358549615,1745244661640,-403.0,0.00038305,2]
[358549616,1745244661650,-1090.816317,0.00039737,14]
[358549617,1745244661659,-179655.90254115,0.000398,2]
[358549618,1745244661669,-151.0,0.000398,14]
[358549619,1745244661678,-151.0,0.000398,14]
[358549620,1745244661689,-151.0,0.000398,14]
[358549621,1745244661698,-359.0,0.000398,14]
[358549622,1745244661708,-151.0,0.000398,14]
[358549623,1745244661719,-151.0,0.000398,14]
[358549624,1745244661729,-151.0,0.000398,14]
[358549625,1745244661739,-176.907331,0.000398,14]
[358549626,1745244661749,-151.0,0.000398,14]
[358549627,1745244661758,-151.0,0.000398,14]
[358549628,1745244661768,-151.0,0.000398,14]
[358549629,1745244661778,-151.0,0.000398,14]
[358549630,1745244661788,-151.0,0.000398,14]
[358549631,1745244661798,-152.081775,0.000398,14]
[358549632,1745244661808,-151.0,0.000398,14]
[358549633,1745244661819,-1923.477721,0.000398,14]
[358549634,1745244661829,-1923.477721,0.000398,14]
[358549635,1745244661838,-151.0,0.000398,14]
[358549636,1745244661848,-151.0,0.000398,14]
[358549637,1745244661858,-1000.0,0.000398,120]
[358549638,1745244661868,-1000.0,0.000398,120]
[358549639,1745244661878,-1000.0,0.000398,120]
[358549640,1745244661887,-1000.0,0.000398,120]
[358549641,1745244661897,-1000.0,0.000398,120]
[358549642,1745244661906,-1000.0,0.000398,120]
[358549643,1745244661916,-1000.0,0.000398,120]
[358549644,1745244661926,-1000.0,0.000398,120]
[358549645,1745244661936,-1000.0,0.000398,120]
[358549646,1745244661945,-668.275304,0.000398,120]
[358549647,1745244661955,-151.0,0.000398,14]
[358549648,1745244661964,-363.487412,0.000398,14]
[358549649,1745244661974,-363.487412,0.000398,14]
[358549650,1745244661983,-201.372904,0.000398,14]
[358549651,1745244661993,-202.11740191,0.000398,14]
[358549652,1745244662003,-201.372904,0.000398,14]
[358549653,1745244662012,-210.37729578,0.000398,14]
[358549654,1745244662022,-166.0,0.000398,14]
[358549655,1745244662031,-154.0,0.000398,14]
[358549656,1745244662041,-166.0,0.000398,14]
[358549657,1745244662051,-164.82908989,0.000398,14]
[358549658,1745244662060,-162.89753949,0.000398,14]
[358549659,1745244662070,-319.0,0.000398,14]
[358549660,1745244662079,-319.0,0.000398,14]
[358549661,1745244662090,-319.0,0.000398,14]
[358549662,1745244662100,-319.0,0.000398,14]
[358549663,1745244662110,-319.0,0.000398,14]
[358549664,1745244662121,-319.0,0.000398,14]
[358549665,1745244662131,-319.0,0.000398,14]
[358549666,1745244662140,-319.0,0.000398,14]
[358549667,1745244662150,-319.0,0.000398,14]
[358549668,1745244662160,-319.0,0.000398,14]
[358549669,1745244662169,-319.0,0.000398,14]
[358549670,1745244662178,-228.19450111,0.000398,14]
[358549671,1745244662188,-359.0,0.000398,14]
[358549672,1745244662198,-359.0,0.000398,14]
[358549673,1745244662207,-359.0,0.000398,14]
[358549674,1745244662217,-359.0,0.000398,14]
[358549675,1745244662227,-359.0,0.000398,14]
[358549676,1745244662236,-201.966987,0.000398,2]
[358549677,1745244662247,-151.0,0.000398,14]
[358549678,1745244662257,-950.0,0.000398,2]
[358549679,1745244662267,-319.0,0.000398,14]
[358549680,1745244662277,-319.0,0.000398,14]
[358549681,1745244662286,-2980.0,0.00039841,2]
[358549682,1745244662296,-319.0,0.0003986,14]
[358549683,1745244662306,-319.0,0.0003986,14]
[358549684,1745244662315,-319.0,0.0003986,14]
[358549685,1745244662325,-319.0,0.0003986,14]
[358549686,1745244662341,-319.0,0.0003986,14]
[358549687,1745244662351,-359.0,0.0003986,14]
[358549688,1745244662362,-359.0,0.0003986,14]
[358549689,1745244662372,-359.0,0.0003986,14]
[358549690,1745244662383,-359.0,0.0003986,14]
[358549691,1745244662393,-359.0,0.0003986,14]
[358549692,1745244662403,-359.0,0.0003986,14]
[358549693,1745244662414,-359.0,0.0003987,14]
[358549694,1745244662423,-359.0,0.0003987,14]
[358549695,1745244662433,-359.0,0.0003987,14]
[358549696,1745244662444,-359.0,0.0003987,14]
[358549697,1745244662454,-359.0,0.0003987,14]
[358549698,1745244662464,-359.0,0.0003987,14]
[358549699,1745244662477,-359.0,0.0003987,14]
[358549700,1745244662486,-193.76615751,0.0003987,14]
[358549701,1745244662497,-505.55586505,0.00039889,2]
[358549702,1745244662506,-112006.96440185,0.0003989,2]
[358549703,1745244662516,-151.0,0.0003989,14]
[358549704,1745244662526,-151.0,0.0003989,14]
[358549705,1745244662536,-151.0,0.0003989,14]
[358549706,1745244662547,-151.0,0.0003989,14]
[358549707,1745244662556,-171.589804,0.0003989,14]
[358549708,1745244662566,-171.589804,0.0003989,14]
[358549709,1745244662576,-390.699776,0.0003989,14]
[358549710,1745244662585,-151.0,0.0003989,14]
[358549711,1745244662595,-390.699776,0.0003989,14]
[358549712,1745244662605,-1090.816317,0.0003989,14]
[358549713,1745244662615,-27073.89889602,0.000399,120]
[358549714,1745244662624,-15831.11566223,0.000399,30]
[358549715,1745244662634,-151.0,0.000399,14]
[358549716,1745244662644,-200.0,0.000399,41]
[358549717,1745244662653,-200.0,0.000399,41]
[358549718,1745244662663,-200.0,0.000399,41]
[358549719,1745244662672,-232411.53273329,0.000399,5]
[358549720,1745244662748,-151.0,0.000399,14]
[358549721,1745244662759,-151.0,0.000399,14]
[358549722,1745244662768,-151.0,0.000399,14]
[358549723,1745244662778,-151.0,0.000399,14]
[358549724,1745244662787,-234.055284,0.000399,14]
[358549725,1745244662797,-177.509781,0.000399,14]
[358549726,1745244662807,-508.90064726,0.000399,30]
[358549727,1745244662816,-151.0,0.000399,14]
[358549728,1745244662826,-151.0,0.000399,14]
[358549729,1745244662835,-151.0,0.000399,14]
[358549730,1745244662845,-279.305444,0.000399,14]
[358549731,1745244662855,-151.0,0.000399,14]
[358549732,1745244662864,-151.0,0.000399,14]
[358549733,1745244662874,-151.0,0.000399,19]
[358549734,1745244662883,-1923.477721,0.000399,14]
[358549735,1745244662893,-151.0,0.000399,14]
[358549736,1745244662903,-1923.477721,0.000399,14]
[358549737,1745244662912,-164.482223,0.000399,14]
[358549738,1745244662922,-151.0,0.000399,14]
[358549739,1745244662932,-151.0,0.000399,14]
[358549740,1745244662941,-151.0,0.000399,14]
[358549741,1745244662951,-439.731558,0.000399,2]
[358549742,1745244662960,-439.731558,0.000399,2]
[358549743,1745244662970,-151.0,0.000399,14]
[358549744,1745244662980,-178.327036,0.000399,14]
[358549745,1745244662990,-363.487412,0.000399,14]
[358549746,1745244663000,-363.487412,0.000399,14]
[358549747,1745244663009,-201.372904,0.000399,14]
[358549748,1745244663019,-201.372904,0.000399,14]
[358549749,1745244663029,-214.84228593,0.000399,30]
[358549750,1745244663040,-500.0,0.000399,15]
[358549751,1745244663052,-500.0,0.000399,15]
[358549752,1745244663063,-151.0,0.000399,14]
[358549753,1745244663074,-800.0,0.0003994,7]
[358549754,1745244663085,-800.0,0.00039941,7]
[358549755,1745244663095,-354.46366274,0.00039999,2]
[358549756,1745244663105,-289.469215,0.00039999,31]
[358549757,1745244663116,-219.54483088,0.00039999,31]
[358549758,1745244663126,-500.0,0.00039999,31]
[358549759,1745244663136,-500.0,0.00039999,7]
[358549760,1745244663146,-500.0,0.00039999,31]
[358549761,1745244663156,-500.0,0.00039999,31]
[358549762,1745244663171,-500.0,0.00039999,7]
[358549763,1745244663181,-418.31085838,0.00039999,31]
[358549764,1745244663192,-500.0,0.00039999,31]
[358549765,1745244663201,-500.0,0.00039999,31]
[358549766,1745244663211,-500.0,0.00039999,31]
[358549767,1745244663222,-307.43056428,0.00039999,31]
[358549768,1745244663232,-500.0,0.00039999,31]
[358549769,1745244663242,-597.36157576,0.00039999,7]
[358549770,1745244663251,-500.0,0.00039999,31]
[358549771,1745244663261,-500.0,0.00039999,7]
[358549772,1745244663272,-500.0,0.00039999,31]
[358549773,1745244663282,-585.5328843,0.00039999,31]
[358549774,1745244663291,-500.0,0.00039999,7]
[358549775,1745244663301,-500.0,0.00039999,31]
[358549776,1745244663310,-500.0,0.00039999,31]
[358549777,1745244663321,-411.08197524,0.00039999,31]
[358549778,1745244663332,-500.0,0.00039999,31]
[358549779,1745244663347,-500.0,0.00039999,31]
[358549780,1745244663357,-397.6461066,0.00039999,31]
[358549781,1745244663366,-225.51303102,0.00039999,31]
[358549782,1745244663376,-2000.0,0.0004,8]
[358549783,1745244663387,-131347.92277711,0.0004,30]